Workbook

Sheet Sheet1
A1: 2025年岳阳县麻塘街道耕地地力补贴发放明细表
A2: 农户姓名 | B2: 所在村组 | C2: 实际种植耕地面积（亩） | D2: 补贴标准 （95元/亩） | E2: 补贴金额（元） | F2: 备注
A3: 晏六元 | B3: 东风村大屋组 | C3: 3.69 | D3: 95 | E3: =C3*D3 -> 350.55
A4: 晏永康 | B4: 东风村大屋组 | C4: 4.79 | D4: 95 | E4: =C4*D4 -> 455.05
A5: 晏罗生 | B5: 东风村大屋组 | C5: 5.29 | D5: 95 | E5: =C5*D5 -> 502.55
A6: 晏少初 | B6: 东风村大屋组 | C6: 1.49 | D6: 95 | E6: =C6*D6 -> 141.55
A7: 晏相华 | B7: 东风村大屋组 | C7: 1.79 | D7: 95 | E7: =C7*D7 -> 170.05
A8: 晏坎生 | B8: 东风村大屋组 | C8: 3.09 | D8: 95 | E8: =C8*D8 -> 293.55
A9: 晏群雄 | B9: 东风村大屋组 | C9: 1.79 | D9: 95 | E9: =C9*D9 -> 170.05
A10: 晏成明 | B10: 东风村大屋组 | C10: 5.79 | D10: 95 | E10: =C10*D10 -> 550.05
A11: 晏鹏文 | B11: 东风村大屋组 | C11: 3.29 | D11: 95 | E11: =C11*D11 -> 312.55
A12: 晏敏华 | B12: 东风村大屋组 | C12: 3.09 | D12: 95 | E12: =C12*D12 -> 293.55
A13: 晏辉 | B13: 东风村大屋组 | C13: 5.29 | D13: 95 | E13: =C13*D13 -> 502.55
A14: 晏群杰 | B14: 东风村大屋组 | C14: 2.29 | D14: 95 | E14: =C14*D14 -> 217.55
A15: 晏海松 | B15: 东风村大屋组 | C15: 2.29 | D15: 95 | E15: =C15*D15 -> 217.55
A16: 晏生权 | B16: 东风村大屋组 | C16: 5.79 | D16: 95 | E16: =C16*D16 -> 550.05
A17: 马桂芳 | B17: 东风村大屋组 | C17: 2.09 | D17: 95 | E17: =C17*D17 -> 198.55
A18: 晏检荣 | B18: 东风村大屋组 | C18: 3.29 | D18: 95 | E18: =C18*D18 -> 312.55
A19: 晏三生 | B19: 东风村大屋组 | C19: 2.29 | D19: 95 | E19: =C19*D19 -> 217.55
A20: 晏仁子 | B20: 东风村大屋组 | C20: 3.29 | D20: 95 | E20: =C20*D20 -> 312.55
A21: 童棉芝 | B21: 东风村大屋组 | C21: 1.29 | D21: 95 | E21: =C21*D21 -> 122.55
A22: 晏政辉 | B22: 东风村大屋组 | C22: 4.29 | D22: 95 | E22: =C22*D22 -> 407.55
A23: 晏烛明 | B23: 东风村大屋组 | C23: 2.99 | D23: 95 | E23: =C23*D23 -> 284.05
A24: 晏继仁 | B24: 东风村大屋组 | C24: 4.79 | D24: 95 | E24: =C24*D24 -> 455.05
A25: 晏群艳 | B25: 东风村大屋组 | C25: 4.79 | D25: 95 | E25: =C25*D25 -> 455.05
A26: 晏八生 | B26: 东风村大屋组 | C26: 3.09 | D26: 95 | E26: =C26*D26 -> 293.55
A27: 晏旭日 | B27: 东风村大屋组 | C27: 6.29 | D27: 95 | E27: =C27*D27 -> 597.55
A28: 晏建军 | B28: 东风村大屋组 | C28: 4.79 | D28: 95 | E28: =C28*D28 -> 455.05
A29: 晏亚明 | B29: 东风村大屋组 | C29: 6.69 | D29: 95 | E29: =C29*D29 -> 635.55
A30: 晏件毛 | B30: 东风村大屋组 | C30: 5.29 | D30: 95 | E30: =C30*D30 -> 502.55
A31: 晏雄伟 | B31: 东风村大屋组 | C31: 2.29 | D31: 95 | E31: =C31*D31 -> 217.55
A32: 晏首仁 | B32: 东风村大屋组 | C32: 6.79 | D32: 95 | E32: =C32*D32 -> 645.05
A33: 晏建辉 | B33: 东风村大屋组 | C33: 4.29 | D33: 95 | E33: =C33*D33 -> 407.55
A34: 晏美日 | B34: 东风村大屋组 | C34: 3.29 | D34: 95 | E34: =C34*D34 -> 312.55
A35: 晏细荣 | B35: 东风村大屋组 | C35: 3.79 | D35: 95 | E35: =C35*D35 -> 360.05
A36: 晏建良 | B36: 东风村大屋组 | C36: 3.69 | D36: 95 | E36: =C36*D36 -> 350.55
A37: 晏军山 | B37: 东风村大屋组 | C37: 5.19 | D37: 95 | E37: =C37*D37 -> 493.05
A38: 晏启耀 | B38: 东风村大屋组 | C38: 4.44 | D38: 95 | E38: =C38*D38 -> 421.8
A39: 晏青松 | B39: 东风村大屋组 | C39: 3.64 | D39: 95 | E39: =C39*D39 -> 345.8
A40: 晏已友 | B40: 东风村大屋组 | C40: 4.69 | D40: 95 | E40: =C40*D40 -> 445.55
A41: 晏江耀 | B41: 东风村大屋组 | C41: 4.49 | D41: 95 | E41: =C41*D41 -> 426.55
A42: 晏耀民 | B42: 东风村大屋组 | C42: 5.24 | D42: 95 | E42: =C42*D42 -> 497.8
A43: 骆桂兰 | B43: 东风村大屋组 | C43: 5.69 | D43: 95 | E43: =C43*D43 -> 540.55
A44: 晏孟光 | B44: 东风村大屋组 | C44: 2.87 | D44: 95 | E44: =C44*D44 -> 272.65
A45: 晏大放 | B45: 东风村大屋组 | C45: 3.64 | D45: 95 | E45: =C45*D45 -> 345.8
A46: 晏桥保 | B46: 东风村大屋组 | C46: 1.29 | D46: 95 | E46: =C46*D46 -> 122.55
A47: 晏建水 | B47: 东风村大屋组 | C47: 3.44 | D47: 95 | E47: =C47*D47 -> 326.8
A48: 晏细吐 | B48: 东风村大屋组 | C48: 3.79 | D48: 95 | E48: =C48*D48 -> 360.05
A49: 姜冬英 | B49: 东风村大屋组 | C49: 4.29 | D49: 95 | E49: =C49*D49 -> 407.55
A50: 晏创文 | B50: 东风村大屋组 | C50: 4.29 | D50: 95 | E50: =C50*D50 -> 407.55
A51: 晏金风 | B51: 东风村东风组 | C51: 2.29 | D51: 95 | E51: =C51*D51 -> 217.55
A52: 晏仁祥 | B52: 东风村东风组 | C52: 12.29 | D52: 95 | E52: =C52*D52 -> 1167.55
A53: 晏涛伟 | B53: 东风村东风组 | C53: 5.29 | D53: 95 | E53: =C53*D53 -> 502.55
A54: 晏红霞 | B54: 东风村东风组 | C54: 4.29 | D54: 95 | E54: =C54*D54 -> 407.55
A55: 晏超仁 | B55: 东风村东风组 | C55: 6.29 | D55: 95 | E55: =C55*D55 -> 597.55
A56: 晏如愿 | B56: 东风村东风组 | C56: 1.69 | D56: 95 | E56: =C56*D56 -> 160.55
A57: 晏铁荣 | B57: 东风村东风组 | C57: 6.79 | D57: 95 | E57: =C57*D57 -> 645.05
A58: 晏黑皮 | B58: 东风村东风组 | C58: 4.29 | D58: 95 | E58: =C58*D58 -> 407.55
A59: 晏艳阳 | B59: 东风村东风组 | C59: 3.29 | D59: 95 | E59: =C59*D59 -> 312.55
A60: 晏金锋 | B60: 东风村东风组 | C60: 3.29 | D60: 95 | E60: =C60*D60 -> 312.55
A61: 晏新华 | B61: 东风村东风组 | C61: 5.89 | D61: 95 | E61: =C61*D61 -> 559.55
A62: 晏育珠 | B62: 东风村东风组 | C62: 4.29 | D62: 95 | E62: =C62*D62 -> 407.55
A63: 晏强林 | B63: 东风村东风组 | C63: 4.79 | D63: 95 | E63: =C63*D63 -> 455.05
A64: 童桂兰 | B64: 东风村东风组 | C64: 1.79 | D64: 95 | E64: =C64*D64 -> 170.05
A65: 晏小水 | B65: 东风村东风组 | C65: 1.09 | D65: 95 | E65: =C65*D65 -> 103.55
A66: 晏新愿 | B66: 东风村东风组 | C66: 5.29 | D66: 95 | E66: =C66*D66 -> 502.55
A67: 晏庆生 | B67: 东风村东风组 | C67: 5.09 | D67: 95 | E67: =C67*D67 -> 483.55
A68: 晏兴旺 | B68: 东风村东风组 | C68: 4.29 | D68: 95 | E68: =C68*D68 -> 407.55
A69: 晏新见 | B69: 东风村东风组 | C69: 2.29 | D69: 95 | E69: =C69*D69 -> 217.55
A70: 晏连社 | B70: 东风村东风组 | C70: 4.29 | D70: 95 | E70: =C70*D70 -> 407.55
A71: 晏细荣 | B71: 东风村东风组 | C71: 1.09 | D71: 95 | E71: =C71*D71 -> 103.55
A72: 晏青松 | B72: 东风村东风组 | C72: 8.69 | D72: 95 | E72: =C72*D72 -> 825.55
A73: 陈岳玉 | B73: 东风村东风组 | C73: 1.54 | D73: 95 | E73: =C73*D73 -> 146.3
A74: 晏成辉 | B74: 东风村东风组 | C74: 3.49 | D74: 95 | E74: =C74*D74 -> 331.55
A75: 晏云凤 | B75: 东风村东风组 | C75: 5.79 | D75: 95 | E75: =C75*D75 -> 550.05
A76: 晏春社 | B76: 东风村东风组 | C76: 5.49 | D76: 95 | E76: =C76*D76 -> 521.55
A77: 晏从西 | B77: 东风村东风组 | C77: 4.29 | D77: 95 | E77: =C77*D77 -> 407.55
A78: 晏劲波 | B78: 东风村东风组 | C78: 1.29 | D78: 95 | E78: =C78*D78 -> 122.55
A79: 晏旺喜 | B79: 东风村东风组 | C79: 3.39 | D79: 95 | E79: =C79*D79 -> 322.05
A80: 晏荣波 | B80: 东风村东风组 | C80: 1.09 | D80: 95 | E80: =C80*D80 -> 103.55
A81: 晏如良 | B81: 东风村东风组 | C81: 3.39 | D81: 95 | E81: =C81*D81 -> 322.05
A82: 晏岳保 | B82: 东风村东风组 | C82: 6.29 | D82: 95 | E82: =C82*D82 -> 597.55
A83: 姚玉保 | B83: 东风村东风组 | C83: 1.09 | D83: 95 | E83: =C83*D83 -> 103.55
A84: 张四元 | B84: 东风村东风组 | C84: 1.09 | D84: 95 | E84: =C84*D84 -> 103.55
A85: 晏建武 | B85: 东风村东风组 | C85: 1.09 | D85: 95 | E85: =C85*D85 -> 103.55
A86: 晏能辉 | B86: 东风村东风组 | C86: 1.09 | D86: 95 | E86: =C86*D86 -> 103.55
A87: 晏建生 | B87: 东风村东风组 | C87: 1.09 | D87: 95 | E87: =C87*D87 -> 103.55
A88: 晏复安 | B88: 东风村东风组 | C88: 1.09 | D88: 95 | E88: =C88*D88 -> 103.55
A89: 晏胜 | B89: 东风村东风组 | C89: 1.09 | D89: 95 | E89: =C89*D89 -> 103.55
A90: 童小梅 | B90: 东风村东风组 | C90: 1.54 | D90: 95 | E90: =C90*D90 -> 146.3
A91: 晏四海 | B91: 东风村东风组 | C91: 3.79 | D91: 95 | E91: =C91*D91 -> 360.05
A92: 付桂军 | B92: 东风村东塘组 | C92: 3.79 | D92: 95 | E92: =C92*D92 -> 360.05
A93: 晏四荣 | B93: 东风村东塘组 | C93: 3.79 | D93: 95 | E93: =C93*D93 -> 360.05
A94: 晏国雄 | B94: 东风村东塘组 | C94: 8.29 | D94: 95 | E94: =C94*D94 -> 787.55
A95: 晏腊强 | B95: 东风村东塘组 | C95: 5.29 | D95: 95 | E95: =C95*D95 -> 502.55
A96: 晏燎 | B96: 东风村东塘组 | C96: 5.29 | D96: 95 | E96: =C96*D96 -> 502.55
A97: 晏大齐 | B97: 东风村东塘组 | C97: 5.29 | D97: 95 | E97: =C97*D97 -> 502.55
A98: 晏光荣 | B98: 东风村东塘组 | C98: 6.79 | D98: 95 | E98: =C98*D98 -> 645.05
A99: 晏四雄 | B99: 东风村东塘组 | C99: 7.79 | D99: 95 | E99: =C99*D99 -> 740.05
A100: 晏考山 | B100: 东风村东塘组 | C100: 4.79 | D100: 95 | E100: =C100*D100 -> 455.05
A101: 晏岳星 | B101: 东风村东塘组 | C101: 3.29 | D101: 95 | E101: =C101*D101 -> 312.55
A102: 晏四明 | B102: 东风村东塘组 | C102: 5.79 | D102: 95 | E102: =C102*D102 -> 550.05
A103: 晏红卫 | B103: 东风村东塘组 | C103: 5.59 | D103: 95 | E103: =C103*D103 -> 531.05
A104: 晏希玲 | B104: 东风村东塘组 | C104: 2.79 | D104: 95 | E104: =C104*D104 -> 265.05
A105: 晏剑平 | B105: 东风村东塘组 | C105: 2.29 | D105: 95 | E105: =C105*D105 -> 217.55
A106: 晏忠辉 | B106: 东风村东塘组 | C106: 4.79 | D106: 95 | E106: =C106*D106 -> 455.05
A107: 晏五荣 | B107: 东风村东塘组 | C107: 7.29 | D107: 95 | E107: =C107*D107 -> 692.55
A108: 晏伟 | B108: 东风村东塘组 | C108: 4.29 | D108: 95 | E108: =C108*D108 -> 407.55
A109: 荣三珍 | B109: 东风村东塘组 | C109: 2.29 | D109: 95 | E109: =C109*D109 -> 217.55
A110: 晏孟辉 | B110: 东风村东塘组 | C110: 4.29 | D110: 95 | E110: =C110*D110 -> 407.55
A111: 晏敏 | B111: 东风村东塘组 | C111: 4.29 | D111: 95 | E111: =C111*D111 -> 407.55
A112: 晏四华 | B112: 东风村建设组 | C112: 3.09 | D112: 95 | E112: =C112*D112 -> 293.55
A113: 晏小五 | B113: 东风村建设组 | C113: 4.49 | D113: 95 | E113: =C113*D113 -> 426.55
A114: 晏小林 | B114: 东风村建设组 | C114: 4.49 | D114: 95 | E114: =C114*D114 -> 426.55
A115: 晏玉华 | B115: 东风村建设组 | C115: 5.19 | D115: 95 | E115: =C115*D115 -> 493.05
A116: 晏耀群 | B116: 东风村建设组 | C116: 3.79 | D116: 95 | E116: =C116*D116 -> 360.05
A117: 袁香兰 | B117: 东风村建设组 | C117: 4.49 | D117: 95 | E117: =C117*D117 -> 426.55
A118: 晏育球 | B118: 东风村建设组 | C118: 3.79 | D118: 95 | E118: =C118*D118 -> 360.05
A119: 晏荣华 | B119: 东风村建设组 | C119: 3.79 | D119: 95 | E119: =C119*D119 -> 360.05
A120: 晏华玉 | B120: 东风村建设组 | C120: 6.29 | D120: 95 | E120: =C120*D120 -> 597.55
A121: 晏兰田 | B121: 东风村建设组 | C121: 3.79 | D121: 95 | E121: =C121*D121 -> 360.05
A122: 晏元元 | B122: 东风村建设组 | C122: 3.09 | D122: 95 | E122: =C122*D122 -> 293.55
A123: 晏军华 | B123: 东风村建设组 | C123: 0.99 | D123: 95 | E123: =C123*D123 -> 94.05
A124: 晏明洲 | B124: 东风村建设组 | C124: 3.79 | D124: 95 | E124: =C124*D124 -> 360.05
A125: 晏政军 | B125: 东风村建设组 | C125: 3.79 | D125: 95 | E125: =C125*D125 -> 360.05
A126: 晏细山 | B126: 东风村建设组 | C126: 6.19 | D126: 95 | E126: =C126*D126 -> 588.05
A127: 晏海齐 | B127: 东风村建设组 | C127: 1.69 | D127: 95 | E127: =C127*D127 -> 160.55
A128: 晏凌波 | B128: 东风村建设组 | C128: 3.09 | D128: 95 | E128: =C128*D128 -> 293.55
A129: 晏齐 | B129: 东风村建设组 | C129: 1.69 | D129: 95 | E129: =C129*D129 -> 160.55
A130: 晏美玉 | B130: 东风村建设组 | C130: 5.29 | D130: 95 | E130: =C130*D130 -> 502.55
A131: 晏国荣 | B131: 东风村建设组 | C131: 4.49 | D131: 95 | E131: =C131*D131 -> 426.55
A132: 姜爱兰 | B132: 东风村建设组 | C132: 3.09 | D132: 95 | E132: =C132*D132 -> 293.55
A133: 晏岳群 | B133: 东风村建设组 | C133: 3.79 | D133: 95 | E133: =C133*D133 -> 360.05
A134: 晏经济 | B134: 东风村建设组 | C134: 3.09 | D134: 95 | E134: =C134*D134 -> 293.55
A135: 晏艳辉 | B135: 东风村建设组 | C135: 4.49 | D135: 95 | E135: =C135*D135 -> 426.55
A136: 翁平波 | B136: 东风村毛坡组 | C136: 4.59 | D136: 95 | E136: =C136*D136 -> 436.05
A137: 翁爱国 | B137: 东风村毛坡组 | C137: 2.99 | D137: 95 | E137: =C137*D137 -> 284.05
A138: 翁相宜 | B138: 东风村毛坡组 | C138: 5.29 | D138: 95 | E138: =C138*D138 -> 502.55
A139: 翁四宜 | B139: 东风村毛坡组 | C139: 5.29 | D139: 95 | E139: =C139*D139 -> 502.55
A140: 翁风华 | B140: 东风村毛坡组 | C140: 5.39 | D140: 95 | E140: =C140*D140 -> 512.05
A141: 翁志祥 | B141: 东风村毛坡组 | C141: 4.29 | D141: 95 | E141: =C141*D141 -> 407.55
A142: 晏四华 | B142: 东风村毛坡组 | C142: 5.29 | D142: 95 | E142: =C142*D142 -> 502.55
A143: 翁相庆 | B143: 东风村毛坡组 | C143: 4.99 | D143: 95 | E143: =C143*D143 -> 474.05
A144: 翁刚雄 | B144: 东风村毛坡组 | C144: 5.39 | D144: 95 | E144: =C144*D144 -> 512.05
A145: 张雪美 | B145: 东风村毛坡组 | C145: 3.29 | D145: 95 | E145: =C145*D145 -> 312.55
A146: 翁旺春 | B146: 东风村毛坡组 | C146: 1.59 | D146: 95 | E146: =C146*D146 -> 151.05
A147: 翁友华 | B147: 东风村毛坡组 | C147: 4.79 | D147: 95 | E147: =C147*D147 -> 455.05
A148: 翁托平 | B148: 东风村毛坡组 | C148: 4.09 | D148: 95 | E148: =C148*D148 -> 388.55
A149: 晏备战 | B149: 东风村毛坡组 | C149: 3.59 | D149: 95 | E149: =C149*D149 -> 341.05
A150: 翁中耀 | B150: 东风村毛坡组 | C150: 7.29 | D150: 95 | E150: =C150*D150 -> 692.55
A151: 晏四波 | B151: 东风村毛坡组 | C151: 6.29 | D151: 95 | E151: =C151*D151 -> 597.55
A152: 晏金恒 | B152: 东风村毛坡组 | C152: 4.29 | D152: 95 | E152: =C152*D152 -> 407.55
A153: 翁白生 | B153: 东风村毛坡组 | C153: 8.29 | D153: 95 | E153: =C153*D153 -> 787.55
A154: 翁智强 | B154: 东风村毛坡组 | C154: 9.39 | D154: 95 | E154: =C154*D154 -> 892.05
A155: 翁志华 | B155: 东风村毛坡组 | C155: 2.89 | D155: 95 | E155: =C155*D155 -> 274.55
A156: 翁兵华 | B156: 东风村毛坡组 | C156: 2.39 | D156: 95 | E156: =C156*D156 -> 227.05
A157: 翁勇 | B157: 东风村毛坡组 | C157: 1.59 | D157: 95 | E157: =C157*D157 -> 151.05
A158: 晏中群 | B158: 东风村毛坡组 | C158: 9.29 | D158: 95 | E158: =C158*D158 -> 882.55
A159: 翁满生 | B159: 东风村毛坡组 | C159: 3.29 | D159: 95 | E159: =C159*D159 -> 312.55
A160: 晏玉兰 | B160: 东风村毛坡组 | C160: 2.59 | D160: 95 | E160: =C160*D160 -> 246.05
A161: 翁中庆 | B161: 东风村毛坡组 | C161: 4.09 | D161: 95 | E161: =C161*D161 -> 388.55
A162: 翁春光 | B162: 东风村毛坡组 | C162: 3.29 | D162: 95 | E162: =C162*D162 -> 312.55
A163: 翁治川 | B163: 东风村毛坡组 | C163: 3.89 | D163: 95 | E163: =C163*D163 -> 369.55
A164: 翁正川 | B164: 东风村毛坡组 | C164: 4.69 | D164: 95 | E164: =C164*D164 -> 445.55
A165: 翁友庆 | B165: 东风村毛坡组 | C165: 3.19 | D165: 95 | E165: =C165*D165 -> 303.05
A166: 翁献忠 | B166: 东风村毛坡组 | C166: 4.59 | D166: 95 | E166: =C166*D166 -> 436.05
A167: 翁三喜 | B167: 东风村毛坡组 | C167: 5.89 | D167: 95 | E167: =C167*D167 -> 559.55
A168: 胡友桂 | B168: 东风村毛坡组 | C168: 3.79 | D168: 95 | E168: =C168*D168 -> 360.05
A169: 翁霁 | B169: 东风村毛坡组 | C169: 2.39 | D169: 95 | E169: =C169*D169 -> 227.05
A170: 晏艳芳 | B170: 东风村彭垅组 | C170: 1.89 | D170: 95 | E170: =C170*D170 -> 179.55
A171: 晏伟群 | B171: 东风村彭垅组 | C171: 4.29 | D171: 95 | E171: =C171*D171 -> 407.55
A172: 张佳琴 | B172: 东风村彭垅组 | C172: 2.29 | D172: 95 | E172: =C172*D172 -> 217.55
A173: 晏曙光 | B173: 东风村彭垅组 | C173: 3.99 | D173: 95 | E173: =C173*D173 -> 379.05
A174: 晏永忠 | B174: 东风村彭垅组 | C174: 3.29 | D174: 95 | E174: =C174*D174 -> 312.55
A175: 晏宇雄 | B175: 东风村彭垅组 | C175: 3.89 | D175: 95 | E175: =C175*D175 -> 369.55
A176: 晏四生 | B176: 东风村彭垅组 | C176: 6.32 | D176: 95 | E176: =C176*D176 -> 600.4
A177: 晏猛 | B177: 东风村彭垅组 | C177: 3.86 | D177: 95 | E177: =C177*D177 -> 366.7
A178: 晏塘生 | B178: 东风村彭垅组 | C178: 3.19 | D178: 95 | E178: =C178*D178 -> 303.05
A179: 晏新华 | B179: 东风村彭垅组 | C179: 5.09 | D179: 95 | E179: =C179*D179 -> 483.55
A180: 晏金玉 | B180: 东风村彭垅组 | C180: 2.89 | D180: 95 | E180: =C180*D180 -> 274.55
A181: 晏五生 | B181: 东风村彭垅组 | C181: 2.49 | D181: 95 | E181: =C181*D181 -> 236.55
A182: 晏细毛 | B182: 东风村彭垅组 | C182: 1.99 | D182: 95 | E182: =C182*D182 -> 189.05
A183: 晏兵兵 | B183: 东风村彭垅组 | C183: 2.39 | D183: 95 | E183: =C183*D183 -> 227.05
A184: 晏六生 | B184: 东风村彭垅组 | C184: 1.19 | D184: 95 | E184: =C184*D184 -> 113.05
A185: 晏军玉 | B185: 东风村彭垅组 | C185: 6.09 | D185: 95 | E185: =C185*D185 -> 578.55
A186: 晏慢诗 | B186: 东风村彭垅组 | C186: 4.59 | D186: 95 | E186: =C186*D186 -> 436.05
A187: 晏新文 | B187: 东风村彭垅组 | C187: 2.39 | D187: 95 | E187: =C187*D187 -> 227.05
A188: 晏纯玉 | B188: 东风村彭垅组 | C188: 1.99 | D188: 95 | E188: =C188*D188 -> 189.05
A189: 晏友粮 | B189: 东风村彭垅组 | C189: 2.09 | D189: 95 | E189: =C189*D189 -> 198.55
A190: 晏满芝 | B190: 东风村彭垅组 | C190: 1.29 | D190: 95 | E190: =C190*D190 -> 122.55
A191: 晏美华 | B191: 东风村彭垅组 | C191: 2.19 | D191: 95 | E191: =C191*D191 -> 208.05
A192: 晏红雨 | B192: 东风村彭垅组 | C192: 4.49 | D192: 95 | E192: =C192*D192 -> 426.55
A193: 晏元宝 | B193: 东风村彭垅组 | C193: 2.29 | D193: 95 | E193: =C193*D193 -> 217.55
A194: 张娟 | B194: 东风村水库组 | C194: 1.29 | D194: 95 | E194: =C194*D194 -> 122.55
A195: 汤楚齐 | B195: 东风村水库组 | C195: 4.29 | D195: 95 | E195: =C195*D195 -> 407.55
A196: 晏建华 | B196: 东风村水库组 | C196: 1.29 | D196: 95 | E196: =C196*D196 -> 122.55
A197: 翁四球 | B197: 东风村水库组 | C197: 3.29 | D197: 95 | E197: =C197*D197 -> 312.55
A198: 彭岳林 | B198: 东风村新垅组 | C198: 3.79 | D198: 95 | E198: =C198*D198 -> 360.05
A199: 晏进先 | B199: 东风村新垅组 | C199: 1.79 | D199: 95 | E199: =C199*D199 -> 170.05
A200: 晏奇 | B200: 东风村新垅组 | C200: 5.79 | D200: 95 | E200: =C200*D200 -> 550.05
... 4273 more rows
